bitfinex/quotes_SOLUSD_20250719
["timestamp","ask_amount","ask_price","bid_price","bid_amount"]
[1752902690543,0.06,177.35,177.34,82.12468397]
[1752902694656,0.06,177.35,177.34,90.96131602]
[1752902694850,0.06,177.35,177.34,90.98131602]
[1752902696250,0.06,177.35,177.34,51.62131602]
[1752902696453,0.06,177.35,177.34,90.98131602]
[1752902699760,0.06,177.35,177.34,178.52131602]
[1752902700053,0.06,177.35,177.34,177.95742745]
[1752902701358,0.06,177.35,177.34,138.59742745]
[1752902701562,0.06,177.35,177.34,177.93742745]
[1752902705263,0.06,177.35,177.34,138.59742745]
[1752902706058,0.06,177.35,177.34,177.93742745]
[1752902706261,0.06,177.35,177.34,138.59742745]
[1752902706757,0.06,177.35,177.34,177.93742745]
[1752902707460,0.06,177.35,177.34,138.59742745]
[1752902707845,0.06,177.35,177.34,177.93742745]
[1752902708143,0.06,177.35,177.34,138.59742745]
[1752902708349,0.06,177.35,177.34,177.93742745]
[1752902708555,0.06,177.35,177.34,138.59742745]
[1752902708756,0.06,177.35,177.34,177.93742745]
[1752902709369,0.06,177.35,177.34,176.01356972]
[1752902709662,0.06,177.35,177.34,177.93742745]
[1752902712655,0.06,177.35,177.34,174.93742745]
[1752902716382,0.06,177.35,177.34,133.67356972]
[1752902716668,0.06,177.35,177.34,174.93742745]
[1752902717267,0.06,177.35,177.34,173.01356972]
[1752902717466,0.06,177.35,177.34,174.93742745]
[1752902718366,0.06,177.35,177.34,132.96356972]
[1752902718547,0.06,177.35,177.34,172.30356972]
[1752902719469,0.06,177.35,177.34,132.96356972]
[1752902719649,0.06,177.35,177.34,172.30356972]
[1752902720052,0.06,177.35,177.34,132.96356972]
[1752902720259,0.06,177.35,177.34,172.30356972]
[1752902721173,0.06,177.35,177.34,132.96356972]
[1752902721549,0.06,177.35,177.34,172.30356972]
[1752902723771,0.06,177.35,177.34,172.99356972]
[1752902723978,0.06,177.35,177.34,174.91742745]
[1752902729370,0.06,177.35,177.34,172.99356972]
[1752902729570,0.06,177.35,177.34,174.91742745]
[1752902734281,1e-08,177.38,177.37,42.78468397]
[1752902734480,1e-08,177.38,177.37,84.6123349]
[1752902734666,1e-08,177.38,177.37,90.9402669]
[1752902734861,1e-08,177.38,177.37,49.67640917]
[1752902735062,1e-08,177.38,177.37,90.9402669]
[1752902739782,1e-08,177.38,177.37,51.6002669]
[1752902740186,1e-08,177.38,177.37,89.01640917]
[1752902740384,1e-08,177.38,177.37,90.9402669]
[1752902740565,1e-08,177.38,177.37,51.6002669]
[1752902740878,1e-08,177.38,177.37,89.6864737]
[1752902741081,1e-08,177.38,177.37,177.2264737]
[1752902741279,1e-08,177.38,177.37,171.5885417]
[1752902741478,1e-08,177.38,177.37,143.66468397]
[1752902742304,2.52385774,177.38,177.37,143.66468397]
[1752902743198,0.60000001,177.38,177.37,143.66468397]
[1752902743501,1e-08,177.38,177.37,143.66468397]
[1752902744867,0.60000001,177.38,177.37,143.66468397]
[1752902747492,1e-08,177.38,177.37,143.66468397]
[1752902749591,0.60000001,177.38,177.37,143.66468397]
[1752902749983,1e-08,177.38,177.37,143.66468397]
[1752902752509,2.52385774,177.38,177.37,39.34]
[1752902752673,2.52385774,177.38,177.34,104.35468397]
[1752902752872,1.92385773,177.35,177.34,104.35468397]
[1752902753072,0.6,177.35,177.34,143.69468397]
[1752902753780,2.52385773,177.36,177.34,143.69468397]
[1752902755168,0.6,177.36,177.34,143.69468397]
[1752902756002,1.92385773,177.37,177.34,56.15468397]
[1752902756480,1.92385773,177.37,177.34,56.83468397]
[1752902757698,2.52385773,177.37,177.34,56.83468397]
[1752902759378,2.52385773,177.37,177.34,56.15468397]
[1752902760315,1e-08,177.38,177.36,18.7085417]
[1752902760480,1e-08,177.38,177.37,58.7285417]
[1752902760985,1e-08,177.38,177.37,56.80468397]
[1752902761393,1e-08,177.38,177.37,64.3664737]
[1752902761582,1e-08,177.38,177.37,151.9064737]
[1752902763108,1e-08,177.38,177.37,149.98261597]
[1752902763295,1e-08,177.38,177.37,151.9064737]
[1752902764209,1e-08,177.38,177.37,149.98261597]
[1752902764507,1e-08,177.38,177.37,151.9064737]
[1752902765017,1e-08,177.38,177.37,149.98261597]
[1752902765917,1e-08,177.38,177.37,150.01261597]
[1752902768402,1e-08,177.38,177.37,143.69468397]
[1752902769188,1e-08,177.38,177.37,104.35468397]
[1752902769388,1e-08,177.38,177.37,143.69468397]
[1752902769982,2.52385774,177.38,177.37,104.35468397]
[1752902770201,2.52385774,177.38,177.37,87.57]
[1752902770393,8.1614719,177.38,177.37,0.03]
[1752902771293,0.60000001,177.38,177.37,0.03]
[1752902771501,1.92385774,177.38,177.37,0.03]
[1752902772011,2.52385774,177.38,177.37,0.03]
[1752902773325,1.92385774,177.38,177.37,0.03]
[1752902776808,1e-08,177.38,177.37,0.03]
[1752902777012,1.92385774,177.38,177.37,0.03]
[1752902777636,1e-08,177.38,177.37,0.03]
[1752902777919,1.92385774,177.38,177.37,0.03]
[1752902779304,2.52385774,177.38,177.37,0.03]
[1752902779613,1.92385774,177.38,177.37,0.03]
[1752902781919,7.5614719,177.38,177.37,0.03]
[1752902782117,6.23761417,177.38,177.37,0.03]
[1752902782312,8.1614719,177.38,177.37,0.03]
[1752902783339,7.5614719,177.38,177.37,0.03]
[1752902784140,11.9614719,177.38,177.37,0.03]
[1752902784536,7.5614719,177.38,177.37,0.03]
[1752902785548,1e-08,177.38,177.37,0.03]
[1752902785749,1.92385774,177.38,177.37,0.03]
[1752902787357,7.5614719,177.38,177.37,0.03]
[1752902788054,8.1614719,177.38,177.37,0.03]
[1752902788228,2.52385774,177.38,177.37,0.03]
[1752902789361,1.92385774,177.38,177.37,0.03]
[1752902789733,7.5614719,177.38,177.37,0.03]
[1752902790485,15.85690282,177.38,177.37,0.03]
[1752902790672,20.25690282,177.38,177.37,0.03]
[1752902791571,10.63761417,177.38,177.37,0.03]
[1752902791762,20.25690282,177.38,177.37,0.03]
[1752902794467,12.5614719,177.38,177.37,0.03]
[1752902796174,20.25690282,177.38,177.37,0.03]
[1752902806612,12.5614719,177.38,177.37,0.03]
[1752902811410,20.25690282,177.38,177.37,0.03]
[1752902812613,11.9614719,177.38,177.37,0.03]
[1752902813201,12.5614719,177.38,177.37,0.03]
[1752902814013,10.03761417,177.38,177.37,0.03]
[1752902814212,11.9614719,177.38,177.37,0.03]
[1752902814405,11.9614719,177.38,177.37,0.7]
[1752902815813,10.03761417,177.38,177.37,0.7]
[1752902816012,11.9614719,177.38,177.37,0.7]
[1752902816493,4.40000001,177.38,177.37,0.7]
[1752902818730,1e-08,177.38,177.37,0.7]
[1752902820305,1e-08,177.38,177.37,2.62385773]
[1752902820515,1e-08,177.38,177.37,19.4085417]
[1752902821505,1e-08,177.38,177.37,25.0464737]
[1752902822429,1e-08,177.38,177.37,19.4085417]
[1752902822826,1e-08,177.38,177.37,25.0464737]
[1752902823615,0.06,177.42,177.4,23.35718397]
[1752902823947,1.92385773,177.56,177.49,18.29568397]
[1752902824234,20.64965832,177.62,177.56,16.78468397]
[1752902824438,20.64965832,177.62,177.58,7.55505425]
[1752902824637,1.92385773,177.62,177.59,0.67]
[1752902824807,1.92385773,177.62,177.58,7.55505425]
[1752902825141,7.69543092,177.66,177.58,7.55505425]
[1752902825142,1.92385773,177.66,177.61,18.7085417]
[1752902825434,0.69,177.68,177.61,18.7085417]
[1752902825435,0.69,177.68,177.62,40.05]
[1752902825936,1.92385773,177.65,177.63,0.67]
[1752902826139,6.31830387,177.68,177.64,0.68]
[1752902826314,0.69,177.71,177.65,0.68]
[1752902826517,1.92385773,177.68,177.65,0.68]
[1752902826721,1.92385773,177.68,177.66,0.68]
[1752902827017,2.99339867,177.68,177.66,0.68]
[1752902827228,2.99339867,177.67,177.66,0.68]
[1752902827725,0.69,177.71,177.66,0.68]
[1752902827932,5.62682871,177.72,177.67,0.68]
[1752902827933,2.99339867,177.68,177.67,0.68]
[1752902828129,2.99339867,177.68,177.6,26.56306306]
[1752902828318,2.99339867,177.62,177.6,16.78468397]
[1752902828518,2.99339867,177.62,177.6,17.46468397]
[1752902828732,2.99339867,177.62,177.61,0.68]
[1752902830245,8.62312591,177.63,177.61,0.68]
[1752902831467,8.62312591,177.63,177.6,16.78468397]
[1752902831651,14.06944678,177.69,177.61,0.68]
[1752902831652,0.69,177.67,177.61,0.68]
[1752902831844,2.99339867,177.66,177.62,19.77808264]
[1752902832044,2.99339867,177.65,177.63,0.68]
[1752902833049,8.62266134,177.65,177.63,0.68]
[1752902835150,8.62266134,177.65,177.6,127.0]
[1752902835151,3.68339867,177.64,177.6,127.0]
[1752902835372,2.99339867,177.61,177.6,104.38468397]
[1752902835541,19.70187736,177.65,177.6,17.46468397]
[1752902835869,2.99339867,177.62,177.61,0.68]
[1752902836042,2.99339867,177.63,177.61,0.68]
[1752902836465,2.99339867,177.62,177.6,16.78468397]
[1752902836646,2.99339867,177.62,177.59,87.6]
[1752902836847,2.99339867,177.61,177.59,126.98]
[1752902837046,5.63094768,177.59,177.55,43.46468397]
[1752902837265,2.99339867,177.58,177.56,41.591]
[1752902837659,2.99339867,177.58,177.56,2.191]
[1752902837852,2.99339867,177.58,177.56,41.591]
[1752902838254,8.62434635,177.59,177.56,41.591]
[1752902838560,8.62434635,177.59,177.56,41.571]
[1752902838765,5.62999662,177.62,177.57,16.78468397]
[1752902838994,2.99339867,177.64,177.6,2.99339867]
[1752902839265,2.99339867,177.64,177.61,0.68]
[1752902839871,14.06983869,177.69,177.62,0.68]
[1752902840167,0.75,177.71,177.64,2.99339867]
[1752902840372,8.62086068,177.7,177.66,2.99339867]
[1752902840568,8.62086068,177.7,177.67,0.68]
[1752902840763,2.99339867,177.69,177.67,0.68]
[1752902841276,0.75,177.71,177.67,0.68]
[1752902841277,5.6873058,177.71,177.67,0.68]
[1752902841457,2.99339867,177.7,177.66,2.99339867]
[1752902841657,2.99339867,177.7,177.67,0.68]
[1752902842276,5.6873058,177.71,177.68,0.68]
[1752902842443,2.99339867,177.7,177.68,0.68]
[1752902842646,0.06,177.71,177.68,0.68]
[1752902842854,2.99339867,177.7,177.66,2.99339867]
[1752902843064,2.99339867,177.69,177.66,17.46468397]
[1752902843266,2.99339867,177.7,177.67,0.68]
[1752902843459,3.05339867,177.71,177.68,0.68]
[1752902843667,0.06,177.71,177.69,3.67339867]
[1752902843894,0.06,177.71,177.69,0.68]
[1752902846693,0.06,177.71,177.69,2.99339867]
[1752902846885,0.06,177.71,177.7,0.68]
[1752902848000,0.06,177.71,177.68,16.78468397]
[1752902848159,0.06,177.71,177.65,2.2876]
[1752902848160,2.99339867,177.69,177.65,2.2876]
[1752902848364,2.99339867,177.66,177.64,16.78468397]
[1752902848583,2.99339867,177.65,177.63,16.78468397]
[1752902848793,2.99339867,177.65,177.63,56.16468397]
[1752902849395,2.99339867,177.67,177.64,0.68]
[1752902849582,6.31746201,177.7,177.64,2.99339867]
[1752902849895,8.68059829,177.71,177.67,2.99339867]
[1752902850064,2.99339867,177.7,177.67,0.68]
[1752902850273,5.68719962,177.71,177.67,0.68]
[1752902850487,2.99339867,177.7,177.67,0.68]
[1752902850705,2.99339867,177.7,177.68,0.68]
[1752902851504,2.99339867,177.7,177.68,17.46468397]
[1752902851796,3.05339867,177.71,177.69,17.46468397]
[1752902852094,2.99339867,177.7,177.67,39.38]
[1752902852405,2.99339867,177.68,177.67,56.16468397]
[1752902852906,2.99339867,177.69,177.67,56.16468397]
[1752902853085,2.99339867,177.69,177.67,56.84468397]
[1752902853289,2.99339867,177.7,177.67,56.84468397]
[1752902853590,0.06,177.71,177.68,20.45808264]
[1752902853793,0.06,177.71,177.69,0.68]
[1752902856081,3.05339867,177.71,177.69,0.68]
[1752902856884,0.06,177.71,177.69,0.68]
[1752902857084,0.06,177.71,177.7,20.43808264]
[1752902857397,0.06,177.71,177.7,59.81808264]
[1752902858905,0.06,177.71,177.7,65.44554465]
[1752902859308,0.06,177.71,177.7,153.04554465]
[1752902859695,0.06,177.71,177.7,104.38468397]
[1752902859894,0.06,177.71,177.7,143.78468397]
[1752902860696,0.06,177.71,177.7,87.6]
[1752902861102,0.06,177.71,177.69,39.4]
[1752902861409,0.06,177.71,177.69,16.78468397]
[1752902862292,3.05339867,177.71,177.66,3.65339867]
[1752902862527,0.68,177.7,177.67,56.18468397]
[1752902862735,3.67339867,177.7,177.67,56.18468397]
[1752902863628,2.99339867,177.7,177.67,56.18468397]
[1752902864013,8.68081401,177.71,177.67,56.18468397]
[1752902864318,9.36081401,177.71,177.67,56.18468397]
[1752902864498,8.68081401,177.71,177.68,0.66]
[1752902864692,8.68081401,177.71,177.67,56.18468397]
[1752902865424,0.06,177.71,177.68,3.65339867]
[1752902865622,0.06,177.71,177.69,0.66]
[1752902866032,0.06,177.71,177.69,59.81808264]
[1752902866213,0.06,177.71,177.7,0.66]
[1752902867525,0.06,177.71,177.7,17.44468397]
[1752902868943,0.06,177.71,177.69,39.38]
[1752902869112,3.05339867,177.71,177.67,17.44468397]
[1752902869435,0.74,177.71,177.68,39.38]
[1752902870037,0.74,177.71,177.68,42.37339867]
[1752902870238,0.06,177.71,177.68,42.37339867]
[1752902870409,0.06,177.71,177.68,43.03339867]
[1752902870611,0.06,177.71,177.7,2.99339867]
[1752902871010,0.06,177.71,177.7,3.65339867]
[1752902871539,0.06,177.71,177.7,59.79808264]
[1752902871928,0.06,177.71,177.7,65.42554465]
[1752902872130,0.06,177.71,177.7,153.02554465]
[1752902878064,0.06,177.71,177.7,179.02554465]
[1752902880269,0.06,177.71,177.7,153.02554465]
[1752902880494,0.06,177.71,177.7,113.66554465]
[1752902881185,0.06,177.71,177.7,153.00554465]
[1752902881360,0.06,177.71,177.7,3.65339867]
[1752902881556,0.06,177.75,177.72,16.78468397]
[1752902881764,0.06,177.75,177.71,5.62714534]
[1752902881765,0.74,177.75,177.74,16.78468397]
[1752902881979,0.68,177.74,177.66,0.03]
[1752902882158,2.99339867,177.73,177.7,16.78468397]
[1752902882472,0.68,177.72,177.66,0.03]
[1752902882780,0.68,177.72,177.67,2.99339867]
[1752902882781,3.67339867,177.72,177.67,2.99339867]
[1752902883080,2.99339867,177.68,177.66,0.03]
[1752902883282,0.68,177.71,177.66,0.03]
[1752902883483,1.5387,177.73,177.66,0.03]
[1752902883484,9.36499867,177.67,177.66,0.03]
[1752902883653,10.04499867,177.67,177.66,0.03]
[1752902884079,0.68,177.67,177.66,0.03]
[1752902884353,6.30841222,177.67,177.66,0.03]
[1752902884562,0.68,177.67,177.66,0.03]
[1752902884761,6.3716,177.72,177.66,16.81468397]
[1752902884989,0.68,177.69,177.67,2.99339867]
[1752902885155,0.68,177.71,177.68,2.99339867]
[1752902885361,0.68,177.71,177.69,2.99339867]
[1752902885589,6.30718058,177.71,177.66,0.69]
[1752902885885,0.68,177.71,177.69,2.99339867]
[1752902886262,5.62654389,177.73,177.7,2.99339867]
[1752902886461,2.99339867,177.74,177.68,16.78468397]
[1752902886462,6.30626925,177.74,177.71,2.99339867]
[1752902886878,0.68,177.74,177.72,2.99339867]
[1752902887056,5.68597268,177.75,177.72,2.99339867]
[1752902887259,6.36597268,177.75,177.72,2.99339867]
[1752902887699,5.68597268,177.75,177.72,2.99339867]
[1752902887907,6.36597268,177.75,177.72,2.99339867]
[1752902888205,0.68,177.74,177.72,2.99339867]
[1752902888379,5.68597268,177.75,177.72,2.99339867]
[1752902888876,6.36597268,177.75,177.72,2.99339867]
[1752902889212,6.36597268,177.75,177.72,5.12743337]
[1752902889520,0.68,177.74,177.71,5.12743337]
[1752902890388,5.68597268,177.75,177.72,5.12743337]
[1752902890579,0.06,177.75,177.73,5.12743337]
[1752902890780,0.06,177.75,177.74,5.12743337]
[1752902891085,0.74,177.75,177.73,5.12743337]
[1752902891980,0.06,177.75,177.74,5.12743337]
[1752902894700,0.06,177.75,177.74,21.91211734]
[1752902894900,0.06,177.75,177.74,22.58211734]
[1752902896822,0.06,177.75,177.74,62.42211734]
[1752902899114,0.06,177.75,177.7,0.67]
[1752902899316,0.06,177.75,177.72,5.12743337]
[1752902899519,0.06,177.75,177.73,0.67]
[1752902900022,5.62619556,177.74,177.71,21.91211734]
[1752902900224,5.62619556,177.74,177.71,62.56211734]
[1752902900912,10.75362893,177.74,177.71,16.78468397]
[1752902901236,11.43362893,177.74,177.7,56.76468397]
[1752902901402,11.43362893,177.74,177.7,61.89211734]
[1752902901747,10.75362893,177.74,177.7,62.56211734]
[1752902902504,11.43362893,177.74,177.7,62.56211734]
[1752902903032,6.30619556,177.74,177.71,5.12743337]
[1752902904340,5.68593345,177.75,177.72,5.12743337]
[1752902904642,5.68593345,177.75,177.71,0.67]
[1752902904810,6.36593345,177.75,177.72,5.12743337]
[1752902905512,5.68593345,177.75,177.73,5.12743337]
[1752902906398,0.06,177.75,177.74,5.12743337]
[1752902907224,0.06,177.75,177.73,21.91211734]
[1752902907408,0.06,177.75,177.73,22.58211734]
[1752902907611,0.06,177.75,177.74,5.12743337]
[1752902908611,0.06,177.75,177.74,21.91211734]
[1752902908919,0.06,177.75,177.74,17.45468397]
[1752902909123,0.06,177.75,177.73,42.93055308]
[1752902909427,0.06,177.75,177.74,2.99055308]
[1752902909611,0.06,177.75,177.74,3.66055308]
[1752902910432,0.74,177.75,177.71,104.38468397]
[1752902910639,0.74,177.75,177.73,39.92]
[1752902910817,0.06,177.75,177.73,39.92]
[1752902911017,0.06,177.75,177.74,2.99055308]
[1752902913913,0.06,177.75,177.74,3.66055308]
[1752902915129,0.06,177.75,177.74,2.99055308]
[1752902915325,0.06,177.75,177.74,20.44523705]
[1752902917830,0.06,177.75,177.74,17.45468397]
[1752902918038,0.06,177.75,177.73,42.85055308]
[1752902918538,0.06,177.75,177.74,2.99055308]
[1752902921829,0.06,177.75,177.74,3.68055308]
[1752902922032,0.06,177.75,177.74,20.46523705]
[1752902923244,0.06,177.75,177.74,19.77523705]
[1752902923546,0.06,177.75,177.74,59.59523705]
[1752902924545,0.06,177.75,177.71,87.63]
[1752902924734,0.06,177.75,177.74,2.99055308]
[1752902924933,0.06,177.75,177.74,42.79055308]
[1752902926622,0.06,177.75,177.74,2.99055308]
[1752902928725,0.06,177.75,177.73,57.27468397]
[1752902929051,0.06,177.75,177.74,2.99055308]
[1752902929435,0.06,177.75,177.74,3.68055308]
[1752902932632,0.06,177.75,177.74,20.46523705]
[1752902935150,0.06,177.75,177.73,16.78468397]
[1752902935450,0.06,177.75,177.74,3.68055308]
[1752902935651,0.06,177.75,177.74,0.69]
[1752902935840,0.06,177.75,177.74,2.99055308]
[1752902937835,0.74,177.75,177.74,42.81055308]
[1752902938038,0.74,177.75,177.74,2.99055308]
[1752902938433,0.06,177.75,177.74,2.99055308]
[1752902940157,0.06,177.75,177.74,42.83055308]
[1752902940463,0.06,177.75,177.74,43.52055308]
[1752902940871,0.06,177.75,177.74,2.99055308]
[1752902941048,3.73055308,177.75,177.71,0.03]
[1752902941243,3.67055308,177.74,177.71,0.03]
[1752902941453,2.99055308,177.72,177.71,0.03]
[1752902941945,3.67055308,177.72,177.67,0.03]
[1752902942155,2.99055308,177.69,177.67,0.03]
[1752902942355,0.68,177.71,177.67,0.03]
[1752902942557,3.67055308,177.71,177.67,3.02055308]
[1752902942746,0.68,177.7,177.67,3.02055308]
[1752902943362,0.68,177.7,177.68,2.99055308]
[1752902943570,19.6939005,177.72,177.68,2.99055308]
[1752902943571,23.36445358,177.72,177.68,2.99055308]
[1752902943767,0.68,177.71,177.69,2.99055308]
[1752902943965,5.62682871,177.72,177.69,2.99055308]
[1752902944174,6.30682871,177.72,177.69,2.99055308]
[1752902944764,5.62619556,177.74,177.7,2.99055308]
[1752902944966,0.68,177.72,177.69,2.99055308]
[1752902945349,0.68,177.71,177.69,2.99055308]
[1752902945956,0.68,177.71,177.67,39.91]
[1752902946157,6.3073296,177.71,177.69,2.99055308]
[1752902947255,6.3073296,177.71,177.7,2.99055308]
[1752902947460,5.6273296,177.71,177.7,2.99055308]
[1752902948177,5.62682871,177.72,177.7,2.99055308]
[1752902948349,6.30682871,177.72,177.7,2.99055308]
[1752902949275,5.62619556,177.74,177.71,2.99055308]
[1752902949463,5.62619556,177.74,177.72,2.99055308]
[1752902949973,0.06,177.75,177.73,2.99055308]
[1752902950157,0.06,177.75,177.74,2.99055308]
[1752902952152,0.06,177.75,177.73,0.68]
[1752902952354,0.06,177.75,177.74,2.99055308]
[1752902952549,0.06,177.75,177.73,0.68]
[1752902952756,0.06,177.75,177.74,2.99055308]
[1752902954960,0.06,177.75,177.74,3.67055308]
[1752902958276,0.06,177.75,177.74,20.45523705]
[1752902968305,0.06,177.75,177.74,16.78468397]
[1752902968480,0.06,177.75,177.74,19.77523705]
[1752902969609,0.06,177.75,177.74,20.45523705]
[1752902976835,0.06,177.75,177.74,17.46468397]
[1752902977016,0.06,177.75,177.74,60.17523705]
[1752902977217,0.06,177.75,177.74,20.45523705]
[1752902977418,0.06,177.75,177.74,60.15523705]
[1752902978227,0.06,177.75,177.74,20.45523705]
[1752902978434,0.06,177.75,177.74,60.15523705]
[1752902990123,0.06,177.75,177.74,20.45523705]
[1752902990327,3.74055308,177.75,177.71,90.62055308]
[1752902990556,2.99055308,177.73,177.71,87.63]
[1752902990767,2.99055308,177.74,177.71,87.63]
[1752902990932,3.68055308,177.74,177.71,0.03]
[1752902991331,0.69,177.74,177.71,3.02055308]
[1752902992136,0.69,177.74,177.71,0.03]
[1752902992460,5.62651212,177.73,177.71,3.02055308]
[1752902994057,6.31651212,177.73,177.71,2.99055308]
[1752902994866,6.31651212,177.73,177.69,35.81554307]
[1752902995036,6.31651212,177.73,177.72,2.99055308]
[1752903000160,5.68587904,177.75,177.72,2.99055308]
[1752903000342,0.69,177.74,177.72,2.99055308]
[1752903001058,0.69,177.74,177.73,2.99055308]
[1752903002559,6.31619556,177.74,177.73,2.99055308]
[1752903002769,6.31619556,177.74,177.72,2.99055308]
[1752903002972,5.62619556,177.74,177.72,1.91440313]
[1752903003174,0.69,177.73,177.72,1.91440313]
[1752903003768,0.69,177.73,177.71,0.03]
[1752903003769,2.60440313,177.73,177.71,0.03]
[1752903004074,1.91440313,177.72,177.71,0.03]
[1752903004259,2.60440313,177.72,177.71,0.03]
[1752903004466,8.23123184,177.72,177.71,0.03]
[1752903008570,6.31682871,177.72,177.71,0.03]
[1752903010895,8.23123184,177.72,177.71,0.03]
[1752903011092,26.0,177.69,177.67,0.03]
[1752903011302,1.91440313,177.68,177.67,0.03]
[1752903011483,2.62440313,177.68,177.67,0.03]
[1752903012288,0.71,177.68,177.67,0.03]
[1752903012694,6.33809545,177.68,177.67,0.03]
[1752903019806,45.85809545,177.68,177.67,0.03]
[1752903022290,47.45809545,177.68,177.67,0.03]
[1752903023084,7.93809545,177.68,177.67,0.03]
[1752903023287,47.43809545,177.68,177.67,0.03]
[1752903028409,7.93809545,177.68,177.67,0.03]
[1752903028611,47.39809545,177.68,177.67,0.03]
[1752903035418,7.93809545,177.68,177.67,0.03]
[1752903035731,7.93809545,177.68,177.63,0.03]
[1752903035732,26.0,177.65,177.63,1e-08]
[1752903036023,41.37440313,177.64,177.63,1e-08]
[1752903036225,42.08440313,177.64,177.63,1e-08]
[1752903037221,26.0,177.61,177.6,0.03]
[1752903037423,67.37440313,177.61,177.6,0.03]
[1752903037625,68.08440313,177.61,177.6,0.03]
[1752903039105,73.71471673,177.61,177.6,0.03]
[1752903040505,73.71471673,177.61,177.59,0.03]
[1752903040703,1.91440313,177.6,177.59,1e-08]
[1752903040919,1.91440313,177.6,177.58,0.03]
[1752903040920,10.28201565,177.6,177.58,1e-08]
[1752903041106,31.63158191,177.57,177.56,1e-08]
[1752903041307,81.4857919,177.57,177.53,0.2]
[1752903041502,1.91440313,177.54,177.53,0.2]
[1752903041702,1.91440313,177.54,177.52,0.03]
[1752903041703,67.39440313,177.54,177.52,0.03]
[1752903041922,2.62440313,177.53,177.52,0.03]
[1752903042507,2.62440313,177.53,177.52,1e-08]
[1752903042908,3.70972623,177.53,177.52,1e-08]
[1752903043125,35.34257701,177.53,177.52,1e-08]
[1752903045943,32.34285078,177.53,177.52,1e-08]
[1752903046142,31.63285078,177.53,177.52,1e-08]
[1752903046348,74.11257701,177.53,177.52,1e-08]
[1752903046537,71.82285078,177.53,177.52,1e-08]
[1752903046734,74.82257701,177.53,177.52,1e-08]
[1752903046934,31.63285078,177.53,177.52,1e-08]
[1752903047242,71.11285078,177.53,177.52,1e-08]
[1752903049147,74.11257701,177.53,177.52,1e-08]
[1752903051626,14.09148537,177.57,177.52,3.69972624]
[1752903051952,39.5,177.56,177.54,2.99972623]
[1752903052255,39.5,177.56,177.55,0.7]
[1752903055351,39.5,177.56,177.55,3.69972623]
[1752903055859,8.45980686,177.57,177.55,3.69972623]
[1752903056152,2.99972623,177.56,177.53,0.7]
[1752903056357,2.99972623,177.56,177.52,6.33350001]
[1752903056358,42.49972623,177.55,177.52,6.33350001]
[1752903056536,42.49972623,177.55,177.52,7.03350001]
[1752903056742,39.5,177.55,177.52,7.03350001]
[1752903057149,0.8,177.54,177.53,0.7]
[1752903057540,0.8,177.54,177.53,3.69972623]
[1752903061172,0.8,177.54,177.53,0.7]
[1752903061378,0.8,177.54,177.53,3.69972623]
[1752903063466,0.8,177.54,177.53,0.7]
[1752903063644,46.64253351,177.54,177.52,1e-08]
[1752903063850,0.71,177.53,177.52,1e-08]
[1752903064482,6.34285078,177.53,177.52,1e-08]
[1752903064974,9.34257701,177.53,177.52,1e-08]
[1752903072173,6.34285078,177.53,177.52,1e-08]
[1752903072378,9.34257701,177.53,177.52,1e-08]
[1752903076163,12.34230324,177.53,177.52,1e-08]
[1752903076970,9.34257701,177.53,177.52,1e-08]
[1752903082786,32.34285078,177.53,177.52,1e-08]
[1752903083098,74.84257701,177.53,177.52,1e-08]
[1752903084595,35.34257701,177.53,177.52,1e-08]
[1752903084783,74.84257701,177.53,177.52,1e-08]
[1752903085995,31.63285078,177.53,177.52,1e-08]
[1752903086188,45.13285078,177.53,177.52,0.71000001]
[1752903090489,45.13285078,177.53,177.52,1e-08]
[1752903090896,48.13257701,177.53,177.52,1e-08]
[1752903091101,48.79257701,177.53,177.52,1e-08]